Workbook

Sheet Sched 18
L2: Regulated Airport | M2: Wellington International Airport Limited
L3: Pricing Period Starting Year Ended | M3: 2020-03-31
A4: SCHEDULE 18: REPORT ON THE FORECAST TOTAL ASSET BASE REVENUE REQUIREMENTS
A5: ref | B5: Version 3.0
E6: First Day of Pricing Period | F6: Pricing Period Starting Year | H6: Pricing Period Starting Year + 1 | J6: Pricing Period Starting Year + 2 | L6: Pricing Period Starting Year + 3 | N6: Pricing Period Starting Year + 4 | P6: Last Day of Pricing Period | S6: Calculation - Annual IRR
A7: =ROW() -> 7 | B7: 18(i): Forecast Internal Rate of Return | F7: 2020-03-31 | H7: =+F7+365 -> 2021-03-31 | J7: =+H7+365 -> 2022-03-31 | L7: =+J7+365 -> 2023-03-31 | N7: =+L7+366 -> 2024-03-31 | T7: =G30 -> 2020-03-31 | V7: =H30 -> 2021-03-31 | X7: =I30 -> 2022-03-31 | Z7: =J30 -> 2023-03-31 | AB7: =K30 -> 2024-03-31
A8: =ROW() -> 8 | C8: ($000) | D8: Cash flow date | E8: =+E70 -> 2019-04-01 | F8: =M3-IF(ISNUMBER(E73),E73,F73) -> 2019-10-01 | G8: =$M$3-IF(ISNUMBER(E72),E72,F72) -> 2019-11-04 | H8: =EOMONTH($M$3,12)-IF(ISNUMBER(E73),E73,F73) -> 2020-09-30 | I8: =EOMONTH($M$3,12)-IF(ISNUMBER(E72),E72,F72) -> 2020-11-03 | J8: =EOMONTH($M$3,24)-IF(ISNUMBER(E73),E73,F73) -> 2021-09-30 | K8: =EOMONTH($M$3,24)-IF(ISNUMBER(E72),E72,F72) -> 2021-11-03 | L8: =EOMONTH($M$3,36)-IF(ISNUMBER(D72),E73,F73) -> 2022-09-30 | M8: =EOMONTH($M$3,36)-IF(ISNUMBER(E72),E72,F72) -> 2022-11-03 | N8: =EOMONTH($M$3,48)-IF(ISNUMBER(K73),E73,F73) -> 2023-10-01 | O8: =EOMONTH($M$3,48)-IF(ISNUMBER(E72),E72,F72) -> 2023-11-04 | P8: =EOMONTH($M$3,48) -> 2024-03-31 | T8: Date | U8: Cash flow | V8: Date | W8: Cash flow | X8: Date | Y8: Cash flow | Z8: Date | AA8: Cash flow | AB8: Date | AC8: Cash flow
A9: =ROW() -> 9 | C9: Opening RAB | E9: =E139 -> 521871.2206 | T9: =$E$8 -> 2019-04-01 | U9: =$E$23 -> -512646.7394 | V9: =$T$12+1 -> 2020-04-01 | W9: =-$U$12 -> -527991.141 | X9: =$V$12+1 -> 2021-04-01 | Y9: =-$W$12 -> -542788.306 | Z9: =$X$12+1 -> 2022-04-01 | AA9: =-$Y$12 -> -571934.8961 | AB9: =$Z$12+1 -> 2023-04-01 | AC9: =-$AA$12 -> -625966.2864
A10: =ROW() -> 10 | C10: Forecast opening carry forward adjustment | E10: =G44 -> 9224.481202 | T10: =$F$8 -> 2019-10-01 | U10: =$F$23 -> -65320.52162 | V10: =$H$8 -> 2020-09-30 | W10: =$H$23 -> -48910.00603 | X10: =$J$8 -> 2021-09-30 | Y10: =$J$23 -> -73952.01374 | Z10: =$L$8 -> 2022-09-30 | AA10: =$L$23 -> -109194.4324 | AB10: =$N$8 -> 2023-10-01 | AC10: =$N$23 -> -215363.8034
A11: =ROW() -> 11 | C11: Opening investment value | E11: =E9-E10 -> 512646.7394 | T11: =$G$8 -> 2019-11-04 | U11: =$G$23 -> 86377.53577 | V11: =$I$8 -> 2020-11-03 | W11: =$I$23 -> 43845.47497 | X11: =$K$8 -> 2021-11-03 | Y11: =$K$23 -> 70776.32726 | Z11: =$M$8 -> 2022-11-03 | AA11: =$M$23 -> 92174.80843 | AB11: =$O$8 -> 2023-11-04 | AC11: =$O$23 -> 110091.6352
A12: =ROW() -> 12 | T12: =$T$7 -> 2020-03-31 | U12: =$G$34 -> 527991.141 | V12: =$V$7 -> 2021-03-31 | W12: =$H$34 -> 542788.306 | X12: =$X$7 -> 2022-03-31 | Y12: =$I$34 -> 571934.8961 | Z12: =$Z$7 -> 2023-03-31 | AA12: =$J$34 -> 625966.2864 | AB12: =$AB$7 -> 2024-03-31 | AC12: =$K$34 -> 794053.5337
A13: =ROW() -> 13 | B13: plus | C13: Forecast total revenue requirement | G13: =H91 -> 86377.53577 | I13: =I91 -> 43845.47497 | K13: =J91 -> 70776.32726 | M13: =K91 -> 92174.80843 | O13: =L91 -> 110091.6352
A14: =ROW() -> 14 | B14: less | C14: Forecast assets commissioned | F14: =-F146 -> -25902.18006 | H14: =-G146 -> -25673.66646 | J14: =-H146 -> -40629.70739 | L14: =-I146 -> -65572.57251 | N14: =-J146 -> -165238.6336
A15: =ROW() -> 15 | B15: plus | C15: Forecast cash flow from asset disposals | S15: Forecast post-tax IRR - annual | U15: =IFERROR(XIRR(U9:U12,T9:T12,7%),"") -> 0.07132687867 | W15: =IFERROR(XIRR(W9:W12,V9:V12,7%),"") -> 0.01825578749 | Y15: =IFERROR(XIRR(Y9:Y12,X9:X12,7%),"") -> 0.0472705704 | AA15: =IFERROR(XIRR(AA9:AA12,Z9:Z12,7%),"") -> 0.06302708089 | AC15: =IFERROR(XIRR(AC9:AC12,AB9:AB12,7%),"") -> 0.0913651377
A16: =ROW() -> 16 | B16: less | C16: Forecast operational expenditure | F16: =-H93 -> -25061.20071 | H16: =-I93 -> -19501.37126 | J16: =-J93 -> -23414.93975 | L16: =-K93 -> -29205.48777 | N16: =-L93 -> -32977.66188
A17: =ROW() -> 17 | B17: less | C17: Forecast unlevered tax | F17: =-H95 -> -14357.14084 | H17: =-I95 -> -3734.968313 | J17: =-J95 -> -9907.366593 | L17: =-K95 -> -14416.37214 | N17: =-L95 -> -17147.50797
A18: =ROW() -> 18
A19: =ROW() -> 19 | C19: Forecast closing asset base | P19: =J149 -> 783565.7743 | S19: Calculation -period to date
A20: =ROW() -> 20 | C20: Forecast closing carry forward adjustment | P20: =E55 -> -10487.7594 | T20: =T7 -> 2020-03-31 | V20: =V7 -> 2021-03-31 | X20: =X7 -> 2022-03-31 | Z20: =Z7 -> 2023-03-31 | AB20: =AB7 -> 2024-03-31
A21: =ROW() -> 21 | C21: Forecast closing investment value | P21: =P19-P20 -> 794053.5337 | T21: Date | U21: Cash flow | V21: Date | W21: Cash flow | X21: Date | Y21: Cash flow | Z21: Date | AA21: Cash flow | AB21: Date | AC21: Cash flow
A22: =ROW() -> 22 | T22: =$E$8 -> 2019-04-01 | U22: =$E$23 -> -512646.7394 | V22: =T22 -> 2019-04-01 | W22: -512646.7394 | X22: 2019-04-01 | Y22: -512646.7394 | Z22: 2019-04-01 | AA22: -512646.7394 | AB22: 2019-04-01 | AC22: -512646.7394
A23: =ROW() -> 23 | C23: Forecast net cash flows | E23: =-E11 -> -512646.7394 | F23: =SUM(F13:F17) -> -65320.52162 | G23: =SUM(G13:G17) -> 86377.53577 | H23: -48910.00603 | I23: 43845.47497 | J23: -73952.01374 | K23: 70776.32726 | L23: -109194.4324 | M23: 92174.80843 | N23: -215363.8034 | O23: 110091.6352 | P23: =P21 -> 794053.5337 | T23: =$F$8 -> 2019-10-01 | U23: =$F$23 -> -65320.52162 | V23: 2019-10-01 | W23: -65320.52162 | X23: 2019-10-01 | Y23: -65320.52162 | Z23: 2019-10-01 | AA23: -65320.52162 | AB23: 2019-10-01 | AC23: -65320.52162
A24: =ROW() -> 24 | T24: =$G$8 -> 2019-11-04 | U24: =$G$23 -> 86377.53577 | V24: 2019-11-04 | W24: 86377.53577 | X24: 2019-11-04 | Y24: 86377.53577 | Z24: 2019-11-04 | AA24: 86377.53577 | AB24: 2019-11-04 | AC24: 86377.53577
A25: =ROW() -> 25 | C25: ="Forecast post-tax IRR as at "&TEXT(E8,"dd mmmm yyy") -> Forecast post-tax IRR as at 01 April 2019 | E25: =IFERROR(XIRR(E23:P23,E8:P8),"") -> 0.0587582022 | T25: =$T$7 -> 2020-03-31 | U25: =$G$34 -> 527991.141 | V25: =H8 -> 2020-09-30 | W25: =H23 -> -48910.00603 | X25: 2020-09-30 | Y25: =W25 -> -48910.00603 | Z25: 2020-09-30 | AA25: -48910.00603 | AB25: 2020-09-30 | AC25: -48910.00603
A26: =ROW() -> 26 | C26: NPV check | E26: =IFERROR(XNPV(E25,E23:P23,E8:P8),0) -> -0.007020382327 | F26: =IF(ABS(E26)<0.01,"OK","ERROR") -> OK | V26: =I8 -> 2020-11-03 | W26: =I23 -> 43845.47497 | X26: =V26 -> 2020-11-03 | Y26: =W26 -> 43845.47497 | Z26: =X26 -> 2020-11-03 | AA26: =Y26 -> 43845.47497 | AB26: 2020-11-03 | AC26: 43845.47497
A27: =ROW() -> 27 | V27: =H30 -> 2021-03-31 | W27: =H34 -> 542788.306 | X27: =J8 -> 2021-09-30 | Y27: =J23 -> -73952.01374 | Z27: =X27 -> 2021-09-30 | AA27: -73952.01374 | AB27: =Z27 -> 2021-09-30 | AC27: =AA27 -> -73952.01374
A28: =ROW() -> 28 | X28: =K8 -> 2021-11-03 | Y28: =K23 -> 70776.32726 | Z28: 2021-11-03 | AA28: 70776.32726 | AB28: 2021-11-03 | AC28: 70776.32726
A29: =ROW() -> 29 | B29: 18(ii): Forecast Internal Rate of Return - Annual and Period to Date | G29: Pricing Period Starting Year | H29: Pricing Period Starting Year + 1 | I29: Pricing Period Starting Year + 2 | J29: Pricing Period Starting Year + 3 | K29: Pricing Period Starting Year + 4 | X29: =I30 -> 2022-03-31 | Y29: =I34 -> 571934.8961 | Z29: =L8 -> 2022-09-30 | AA29: =L23 -> -109194.4324 | AB29: 2022-09-30 | AC29: -109194.4324
A30: =ROW() -> 30 | C30: ($000) | D30: Year ended | G30: =F7 -> 2020-03-31 | H30: =H7 -> 2021-03-31 | I30: =J7 -> 2022-03-31 | J30: =L7 -> 2023-03-31 | K30: =N7 -> 2024-03-31 | Z30: =M8 -> 2022-11-03 | AA30: =M23 -> 92174.80843 | AB30: 2022-11-03 | AC30: 92174.80843
A31: =ROW() -> 31 | Z31: =J30 -> 2023-03-31 | AA31: =J34 -> 625966.2864 | AB31: =N8 -> 2023-10-01 | AC31: =N23 -> -215363.8034
A32: =ROW() -> 32 | C32: Forecast closing asset base | G32: =F149 -> 536293.1741 | H32: =G149 -> 550167.891 | I32: 578392.033 | J32: 631500.9751 | K32: 783565.7743 | AB32: =O8 -> 2023-11-04 | AC32: =O23 -> 110091.6352
A33: =ROW() -> 33 | C33: Forecast closing carry forward adjustment | G33: 8302.033082 | H33: 7379.584961 | I33: 6457.136841 | J33: 5534.688721 | K33: -10487.7594 | AB33: =P8 -> 2024-03-31 | AC33: =P23 -> 794053.5337
A34: =ROW() -> 34 | C34: Forecast closing investment value | G34: =G32-G33 -> 527991.141 | H34: =H32-H33 -> 542788.306 | I34: =I32-I33 -> 571934.8961 | J34: =J32-J33 -> 625966.2864 | K34: =K32-K33 -> 794053.5337
A35: =ROW() -> 35
A36: =ROW() -> 36 | C36: Forecast post-tax IRR - annual | G36: =U15 -> 0.07132687867 | H36: =W15 -> 0.01825578749 | I36: =Y15 -> 0.0472705704 | J36: =AA15 -> 0.06302708089 | K36: =AC15 -> 0.0913651377 | S36: Forecast post-tax IRR - annual | U36: =IFERROR(XIRR(U22:U25,T22:T25,7%),"") -> 0.07132687867 | W36: =IFERROR(XIRR(W22:W27,V22:V27,7%),"") -> 0.04473468959 | Y36: =IFERROR(XIRR(Y22:Y29,X22:X29,7%),"") -> 0.04553607643 | AA36: =IFERROR(XIRR(AA22:AA31,Z22:Z31,7%),"") -> 0.04990553558 | AC36: =IFERROR(XIRR(AC22:AC33,AB22:AB33,7%),"") -> 0.05875819981
A37: =ROW() -> 37 | C37: Forecast post-tax IRR - period to date | G37: =U36 -> 0.07132687867 | H37: =W36 -> 0.04473468959 | I37: =Y36 -> 0.04553607643 | J37: =AA36 -> 0.04990553558 | K37: =AC36 -> 0.05875819981
A38: =ROW() -> 38
A39: =ROW() -> 39 | B39: 18(iii): Opening carry forward adjustment
A40: =ROW() -> 40 | C40: ($000) | E40: Forecast closing carry forward from previous price setting event | F40: Opening carry forward adjustments from current price setting event | G40: Total opening carry forward adjustments | I40: Please explain each adjustment and how this has been calculated
A41: =ROW() -> 41 | C41: Default revaluation gain/loss adjustment | E41: -33349.08137 | F41: 42573.56257 | G41: =E41+F41 -> 9224.481202 | I41: Revaluation shortall incurred by WIAL during period of information dislcosure regulation until 2018, offset by MVAU revauation uplift in 2019.
A42: =ROW() -> 42 | C42: Risk allocation adjustment | E42: 0 | F42: 0 | G42: =E42+F42 -> 0
A43: =ROW() -> 43 | C43: Other carry forward adjustments | E43: 0 | F43: 0 | G43: =E43+F43 -> 0
A44: =ROW() -> 44 | C44: Opening carry forward adjustment | E44: =SUM(E41:E43) -> -33349.08137 | F44: 42573.56257 | G44: =SUM(G41:G43) -> 9224.481202
A45: =ROW() -> 45 | C45: Provide a summary of any views expressed by substantial customers about the pricing approaches reflected in the opening carry forward adjustment
A46: =ROW() -> 46 | C46: Revaluation methodology reviewed and agreed with substantial customers during consultation.
A47: =ROW() -> 47
A48: =ROW() -> 48
A49: =ROW() -> 49 | B49: 18(iv): Forecast closing carry forward adjustment
E50: ($000) | G50: Please explain each adjustment and how this has been calculated
A51: =ROW() -> 51 | C51: Remaining revaluation gains to be applied to PSE5 | E51: 4612.240601 | G51: MVAU uplift and historic revaluation shortfall allocated across PES4 and PSE5
A52: =ROW() -> 52 | C52: PSE4 revenue shortfall | E52: -15100 | G52: Price increase capped in PSE4 with shortfall in earnings to be recovered in PSE5
A53: =ROW() -> 53 | C53: [description of closing carry forward adjustment]
A54: =ROW() -> 54 | C54: [description of closing carry forward adjustment]
A55: =ROW() -> 55 | C55: Total forecast closing carry forward adjustment | E55: =SUM(E51:E54) -> -10487.7594
A56: =ROW() -> 56 | C56: Explain how the closing investment value provides a good indication of the remaining capital expected to be recovered by the airport in future pricing periods and provide a summary of substantial customer views on any closing carry forward adjustments
A57: =ROW() -> 57 | C57: Revaluation methodology reviewed and agreed with substantial customers during consultation. Shortfall in PSE4 earnings to be recovered in PSE5 following a risk sharing arrangement established to respond to the COVID19 pandemic during the PSE4 consultation.
A58: =ROW() -> 58
A59: =ROW() -> 59
A60: =ROW() -> 60 | P60: Page 1
H63: Regulated Airport | I63: =+$M$2 -> Wellington International Airport Limited
H64: Pricing Period Starting Year Ended | I64: =+$M$3 -> 2020-03-31
A65: SCHEDULE 18: REPORT ON THE FORECAST TOTAL ASSET BASE REVENUE REQUIREMENTS (cont)
A66: ref | B66: Version 3.0
A67: =ROW() -> 67 | B67: 18(iv): Cash flow timing assumptions
A68: =ROW() -> 68
A69: =ROW() -> 69 | C69: Year of most recent annual disclosure (year ended) | E69: 2019-03-31
A70: =ROW() -> 70 | C70: First day of pricing period | E70: 2019-04-01
A71: =ROW() -> 71 | E71: Airport assumption | F71: Default assumption
A72: =ROW() -> 72 | C72: Cash flow timing - revenues - days from year end | E72: 148 | F72: 148
C73: Cash flow timing - expenditure - days from year end | E73: 182 | F73: 182
A74: =ROW() -> 74 | C74: Explanation and evidence if airport assumption is different from default
A75: =ROW() -> 75 | C75: N/A
A76: =ROW() -> 76 | B76: 18(v): Total Revenue Requirement
A77: =ROW() -> 77 | C77: Overview of the methodology used to determine the revenue requirement
A78: =ROW() -> 78 | C78: Refer to comments in Price Setting Disclosure comments on ID Determination clauses 2.5(10(a)(i) and (ii).
A79: =ROW() -> 79
A80: =ROW() -> 80
A81: =ROW() -> 81
A82: =ROW() -> 82
A83: =ROW() -> 83
A84: =ROW() -> 84
A85: =ROW() -> 85
A86: =ROW() -> 86 | C86: ($000) | H86: Pricing Period Starting Year | I86: Pricing Period Starting Year + 1 | J86: Pricing Period Starting Year + 2 | K86: Pricing Period Starting Year + 3 | L86: Pricing Period Starting Year + 4
A87: =ROW() -> 87 | H87: =+$F$7 -> 2020-03-31 | I87: =+H87+365 -> 2021-03-31 | J87: =+I87+365 -> 2022-03-31 | K87: 2023-03-31 | L87: 2024-03-30
A88: =ROW() -> 88 | C88: Forecast revenue for services applicable to the price setting event (excluding forecast assets held for future use revenue) | H88: 79736 | I88: 38437.9588 | J88: 64590.85615 | K88: 85534.66797 | L88: 99851.52
A89: =ROW() -> 89 | B89: plus | C89: Forecast lease, rental and concession income (not applicable to the price setting event) | H89: 4606.67052 | I89: 4592.081292 | J89: 4907.210304 | K89: 4773.286379 | L89: 8109.949484
A90: =ROW() -> 90 | B90: plus | C90: Forecast other operating revenue (not applicable to the price setting event) | H90: 2034.86525 | I90: 815.43488 | J90: 1278.2608 | K90: 1866.85408 | L90: 2130.16576
A91: =ROW() -> 91 | C91: Forecast total revenue requirement (excluding assets held for future use revenue) | H91: =SUM(H88:H90) -> 86377.53577 | I91: =SUM(I88:I90) -> 43845.47497 | J91: =SUM(J88:J90) -> 70776.32726 | K91: =SUM(K88:K90) -> 92174.80843 | L91: =SUM(L88:L90) -> 110091.6352
A92: =ROW() -> 92
A93: =ROW() -> 93 | B93: less | C93: Forecast operational expenditure | H93: =F268 -> 25061.20071 | I93: =G268 -> 19501.37126 | J93: =H268 -> 23414.93975 | K93: =I268 -> 29205.48777 | L93: =J268 -> 32977.66188
A94: =ROW() -> 94 | B94: less | C94: Forecast depreciation | H94: =F144 -> 19308.29489 | I94: =G144 -> 19843.34716 | J94: =H144 -> 20658.08377 | K94: =I144 -> 21139.51086 | L94: =J144 -> 22646.34905
A95: =ROW() -> 95 | B95: less | C95: Forecast unlevered tax | H95: 14357.14084 | I95: 3734.968313 | J95: 9907.366593 | K95: 14416.37214 | L95: 17147.50797
A96: =ROW() -> 96 | B96: plus | C96: Forecast revaluations | H96: =F145 -> 7828.068309 | I96: =G145 -> 8044.397611 | J96: 8252.518365 | K96: 8675.880494 | L96: 9472.514627
A97: =ROW() -> 97
A98: =ROW() -> 98 | C98: Forecast regulatory profit / (loss) | H98: =H91-H93-H94-H95+H96 -> 35478.96763 | I98: =I91-I93-I94-I95+I96 -> 8810.18585 | J98: =J91-J93-J94-J95+J96 -> 25048.45551 | K98: =K91-K93-K94-K95+K96 -> 36089.31816 | L98: =L91-L93-L94-L95+L96 -> 46792.63097
A99: =ROW() -> 99
A100: =ROW() -> 100
A101: =ROW() -> 101 | C101: Forecast cost of capital | H101: 0.0608
A102: =ROW() -> 102 | C102: Post-tax WACC at price setting event | H102: 0.0567
A103: =ROW() -> 103 | C103: WACC percentile equivalent for forecast cost of capital (optional) | H103: 0.61
A104: =ROW() -> 104 | C104: WACC percentile equivalent for the post-tax IRR (optional) | H104: 0.57
A105: =ROW() -> 105
A106: =ROW() -> 106 | C106: Explain the differences between the post-tax IRR and the forecast cost of capital, and the post-tax WACC at price setting event and the forecast cost of capital (including reasons)
A107: =ROW() -> 107 | C107: Refer to comments in Price Setting Disclosure on ID Determination clauses 2.5(1)(a)(i) and (ii), and 2.5(1)(c)(ii).
A108: =ROW() -> 108
A109: =ROW() -> 109
A110: =ROW() -> 110 | C110: Forecast total revenue requirement from airport charges (including assets held for future use revenue)
A111: =ROW() -> 111 | C111: Forecast total revenue requirement (excluding assets held for future use revenue) | H111: =H91 -> 86377.53577 | I111: =I91 -> 43845.47497 | J111: =J91 -> 70776.32726 | K111: =K91 -> 92174.80843 | L111: =L91 -> 110091.6352
A112: =ROW() -> 112 | C112: Forecast assets held for future use revenue
A113: =ROW() -> 113 | C113: Forecast total revenue requirement (including forecast assets held for future use revenue) | H113: =H111+H112 -> 86377.53577 | I113: =I111+I112 -> 43845.47497 | J113: =J111+J112 -> 70776.32726 | K113: =K111+K112 -> 92174.80843 | L113: =L111+L112 -> 110091.6352
A114: =ROW() -> 114 | C114: Description of any other factors that are considered in determining the forecast total revenue requirement
A115: =ROW() -> 115 | C115: There are no other factors.
A116: =ROW() -> 116
A117: =ROW() -> 117
A118: =ROW() -> 118
A119: =ROW() -> 119
A120: =ROW() -> 120
A121: =ROW() -> 121
A122: =ROW() -> 122
A123: =ROW() -> 123 | M123: Page 2
G126: Regulated Airport | H126: =+$M$2 -> Wellington International Airport Limited
G127: Pricing Period Starting Year Ended | H127: =+$M$3 -> 2020-03-31
A128: SCHEDULE 18: REPORT ON THE FORECAST TOTAL ASSET BASE REVENUE REQUIREMENTS (cont 3)
A129: ref | B129: Version 3.0
C130: ($000)
A131: =ROW() -> 131 | B131: 18(vi): Opening Regulatory Asset Base
A132: =ROW() -> 132 | E132: =E70-1 -> 2019-03-31
A133: =ROW() -> 133 | C133: ="Regulatory asset base as at "&TEXT(E69,"dd mmmm yyy") -> Regulatory asset base as at 31 March 2019 | E133: 476413.4702
A134: =ROW() -> 134 | B134: less | C134: Forecast depreciation | E134: 0
A135: =ROW() -> 135 | B135: plus | C135: Forecast revaluations | E135: 45457.7504
A136: =ROW() -> 136 | B136: plus | C136: Assets commissioned | E136: 0
A137: =ROW() -> 137 | B137: less | C137: Asset disposals
A138: =ROW() -> 138 | B138: plus (less) | C138: Forecast adjustment resulting from cost allocation
A139: =ROW() -> 139 | C139: Estimate of regulatory asset base at start of price setting event | E139: =E133-E134+E135+E136-E137+E138 -> 521871.2206
A140: =ROW() -> 140 | E140: Pricing Period Starting Year - 1 | F140: Pricing Period Starting Year | G140: Pricing Period Starting Year + 1 | H140: Pricing Period Starting Year + 2 | I140: Pricing Period Starting Year + 3 | J140: Pricing Period Starting Year + 4
A141: =ROW() -> 141 | C141: for year ended | E141: =EOMONTH(F141,-12) -> 2019-03-31 | F141: =+$F$7 -> 2020-03-31 | G141: =EOMONTH(F141,12) -> 2021-03-31 | H141: =EOMONTH(G141,12) -> 2022-03-31 | I141: 2023-03-31 | J141: 2024-03-31
A142: =ROW() -> 142 | B142: 18(vii): Forecast Asset Base
A143: =ROW() -> 143 | C143: Forecast asset base—previous year | E143: 476413.4702 | F143: =E149 -> 521871.2206 | G143: =F149 -> 536293.1741 | H143: =G149 -> 550167.891 | I143: =H149 -> 578392.033 | J143: =I149 -> 631500.9751
A144: =ROW() -> 144 | B144: less | C144: Forecast depreciation | E144: 0 | F144: 19308.29489 | G144: 19843.34716 | H144: 20658.08377 | I144: 21139.51086 | J144: 22646.34905
A145: =ROW() -> 145 | B145: plus | C145: Forecast revaluations | E145: 45457.7504 | F145: =F299 -> 7828.068309 | G145: 8044.397611 | H145: 8252.518365 | I145: 8675.880494 | J145: 9472.514627
A146: =ROW() -> 146 | B146: plus | C146: Assets commissioned | E146: 0 | F146: 25902.18006 | G146: 25673.66646 | H146: 40629.70739 | I146: 65572.57251 | J146: 165238.6336
A147: =ROW() -> 147 | B147: less | C147: Asset disposals
A148: =ROW() -> 148 | B148: plus (less) | C148: Forecast adjustment resulting from cost allocation
A149: =ROW() -> 149 | C149: Forecast asset base | E149: =E143-E144+E145+E146-E147+E148 -> 521871.2206 | F149: 536293.1741 | G149: 550167.891 | H149: 578392.033 | I149: 631500.9751 | J149: 783565.7743
A150: =ROW() -> 150
A151: =ROW() -> 151 | C151: Description and explanation of the depreciation methodology applied
A152: =ROW() -> 152 | C152: Refer to comments in Price Setting Disclosure on ID Determination clauses 2.5(1)(c)(iv), and 2.5(1)(p) and (q).
A153: =ROW() -> 153
A154: =ROW() -> 154
A155: =ROW() -> 155 | B155: 18(viii): Forecast Works Under Construction
A156: =ROW() -> 156 | C156: Works under construction—previous year | E156: 39976 | F156: =+E159 -> 26192 | G156: =+F159 -> 29623.81994 | H156: =+G159 -> 32728.81994 | I156: 43869.55994 | J156: 97642.37687
A157: =ROW() -> 157 | B157: plus | C157: Capital expenditure | E157: 24124 | F157: 29334 | G157: 28778.66646 | H157: 51770.44739 | I157: 119345.3894 | J157: 101363.5278
A158: =ROW() -> 158 | B158: less | C158: Assets commissioned | E158: 37908 | F158: 25902.18006 | G158: 25673.66646 | H158: 40629.70739 | I158: 65572.57251 | J158: 165238.6336
A159: =ROW() -> 159 | C159: Works under construction | E159: =E156+E157-E158 -> 26192 | F159: 29623.81994 | G159: 32728.81994 | H159: 43869.55994 | I159: 97642.37687 | J159: 33767.27112
A160: =ROW() -> 160
A161: =ROW() -> 161 | B161: 18(ix): Assets held for future use cost and base value
A162: =ROW() -> 162 | C162: Assets held for future use opening cost—previous year | E162: 12509 | F162: =E168 -> 15224 | G162: =F168 -> 37374.97387 | H162: =G168 -> 40497.25476 | I162: =H168 -> 42942.77451 | J162: =I168 -> 45615.0423
A163: =ROW() -> 163 | B163: plus | C163: Forecast holding costs | E163: 647 | F163: 1033.4804 | G163: 2371.695016 | H163: 2612.938039 | I163: 2834.407046 | J163: 2897.721149
A164: =ROW() -> 164 | B164: less | C164: Forecast assets held for future use net revenue | E164: 307 | F164: 160.5065285 | G164: 162.9141264 | H164: 167.4182883 | I164: 162.1392588 | J164: 164.5713476
A165: =ROW() -> 165 | B165: plus | C165: Forecast assets held for future use additions | E165: 2821 | F165: 21278 | G165: 913.5 | H165: 0 | I165: 0 | J165: 0
A166: =ROW() -> 166 | B166: less | C166: Forecast assets held for future use disposals | E166: 446 | F166: 0 | G166: 0 | H166: 0 | I166: 0 | J166: 0
A167: =ROW() -> 167 | B167: less | C167: Forecast transfers to works under construction | E167: 0 | F167: 0 | G167: 0 | H167: 0 | I167: 0 | J167: -15270.43421
A168: =ROW() -> 168 | C168: Assets held for future use closing cost | E168: =E162+E163-E164+E165-E166-E167 -> 15224 | F168: =F162+F163-F164+F165-F166-F167 -> 37374.97387 | G168: 40497.25476 | H168: 42942.77451 | I168: 45615.0423 | J168: 63618.62631
A169: =ROW() -> 169
A170: =ROW() -> 170 | C170: Initial base value | E170: 7110
A171: =ROW() -> 171 | B171: plus | C171: Opening tracking revaluations | E171: 547
A172: =ROW() -> 172 | C172: Opening base value | E172: =SUM(E170:E171) -> 7657 | F172: =E177 -> 9976 | G172: =F177 -> 31404.87 | H172: =G177 -> 32787.57 | I172: 33272.73555 | J172: 33764.9391
A173: =ROW() -> 173 | B173: plus | C173: Forecast assets held for future use revaluations | E173: -56 | F173: 150.87 | G173: 469.2 | H173: 485.16555 | I173: 492.20355 | J173: 499.4810332
A174: =ROW() -> 174 | B174: plus | C174: Forecast assets held for future use additions | E174: =E165 -> 2821 | F174: =F165 -> 21278 | G174: 913.5 | H174: 0 | I174: 0 | J174: 0
A175: =ROW() -> 175 | B175: less | C175: Forecast assets held for future use disposals | E175: =E166 -> 446 | F175: 0 | G175: 0 | H175: 0 | I175: 0 | J175: 0
A176: =ROW() -> 176 | B176: less | C176: Forecast transfers to works under construction | E176: 0 | F176: 0 | G176: 0 | H176: 0 | I176: 0 | J176: -15270.43421
A177: =ROW() -> 177 | C177: Closing base value | E177: =E172+E173+E174-E175-E176 -> 9976 | F177: =F172+F173+F174-F175-F176 -> 31404.87 | G177: 32787.57 | H177: 33272.73555 | I177: 33764.9391 | J177: 49534.85435
A178: =ROW() -> 178
A179: =ROW() -> 179 | C179: Tracking revaluations | E179: =E171+E173 -> 491 | F179: =E179+F173 -> 641.87 | G179: =F179+G173 -> 1111.07 | H179: =G179+H173 -> 1596.23555 | I179: 2088.4391 | J179: 2587.920133
A180: =ROW() -> 180
A181: =ROW() -> 181 | C181: Assumptions and explanations of any assets held for future use revenues
A182: =ROW() -> 182 | C182: Some interim proprerty rentals are received for land and buildings included in assets held for future use. Rental levels are set on commerical terms. There are no aviation or passenger related charges.
A183: =ROW() -> 183
A184: =ROW() -> 184
A185: =ROW() -> 185 | K185: Page 3
K188: Regulated Airport | L188: =+$M$2 -> Wellington International Airport Limited
K189: Pricing Period Starting Year Ended | L189: =+$M$3 -> 2020-03-31
A190: SCHEDULE 18: REPORT ON THE FORECAST TOTAL ASSET BASE REVENUE REQUIREMENTS (cont 4)
A191: ref | B191: Version 3.0
A192: =ROW() -> 192 | B192: 18(x): Forecast Capital Expenditure
A193: =ROW() -> 193 | C193: ($000) | E193: Pricing Period Starting Year | F193: Pricing Period Starting Year + 1 | G193: Pricing Period Starting Year + 2 | H193: Pricing Period Starting Year + 3 | I193: Pricing Period Starting Year + 4 | J193: Pricing Period Starting Year + 5 | K193: Pricing Period Starting Year + 6 | L193: Pricing Period Starting Year + 7 | M193: Pricing Period Starting Year + 8 | N193: Pricing Period Starting Year + 9 | P193: Total
A194: =ROW() -> 194 | C194: for year ended | E194: =$F$7 -> 2020-03-31 | F194: =EOMONTH(E194,12) -> 2021-03-31 | G194: =EOMONTH(F194,12) -> 2022-03-31 | H194: 2023-03-31 | I194: 2024-03-31 | J194: 2025-03-31 | K194: 2026-03-31 | L194: 2027-03-31 | M194: 2028-03-31 | N194: 2029-03-31
A195: =ROW() -> 195 | C195: Capital Expenditure by Category
A196: =ROW() -> 196 | C196: Capacity growth | E196: 26925.18006 | F196: 26222.21646 | G196: 27667.88489 | H196: 62405.97573 | I196: 45769.64282 | J196: 16881.06931 | K196: 41015.02332 | L196: 31618.91854 | M196: 171577.3724 | N196: 21533.77818
A197: =ROW() -> 197 | C197: Asset replacement and renewal | E197: 2408.819937 | F197: 2556.45 | G197: 24102.5625 | H197: 56939.41372 | I197: 55593.88502 | J197: 24884.61457 | K197: 45622.80067 | L197: 99434.16465 | M197: 90464.31153 | N197: 98684.77101
A198: =ROW() -> 198 | C198: Total capital expenditure | E198: =SUM(E196:E197) -> 29334 | F198: 28778.66646 | G198: 51770.44739 | H198: 119345.3894 | I198: 101363.5278 | J198: 41765.68389 | K198: 86637.82399 | L198: 131053.0832 | M198: 262041.684 | N198: 120218.5492
A199: =ROW() -> 199 | C199: Capital Expenditure by Key Capital Expenditure Project
A200: =ROW() -> 200 | C200: AFS Relocation | E200: 1421 | F200: 0 | G200: 0 | H200: 8647.999425 | I200: 20655.41401 | J200: 0 | K200: 0 | L200: 0 | M200: 0 | N200: 0 | P200: =SUM(E200,F200,G200,H200,I200,J200,K200,L200,M200,N200) -> 30724.41344
A201: =ROW() -> 201 | C201: Apron Development _Package 1 | E201: 90 | F201: 310.5 | G201: 5034.7575 | H201: 13304.6145 | I201: 4590.092002 | J201: 0 | K201: 0 | L201: 0 | M201: 0 | N201: 0 | P201: 23329.964
A202: =ROW() -> 202 | C202: Apron Development _Package 2 | J202: 9548.997897 | K202: 26896.10654 | L202: 30140.29573 | M202: 0 | N202: 0 | P202: 66585.40017
A203: =ROW() -> 203 | C203: Apron Development _Package 3 | M203: 28048.03249 | N203: 14651.14655 | P203: 42699.17903
A204: =ROW() -> 204 | C204: Stage 3 - New EDS ECAC Std3 (capitalisation 1) | E204: 0 | F204: 0 | G204: 2356.695 | H204: 5765.33295 | I204: 13770.27601 | J204: 0 | K204: 0 | L204: 0 | M204: 0 | N204: 0 | P204: 21892.30396
A205: =ROW() -> 205 | C205: Stage 3 - New EDS ECAC Std3 (capitalisation 2) | E205: 0 | F205: 0 | G205: 0 | H205: 0 | I205: 0 | J205: 12589.47484 | K205: 12292.55326 | L205: 0 | M205: 0 | N205: 0 | P205: 24882.0281
A206: =ROW() -> 206 | C206: Cargo Hub Stage 1 | E206: 63 | F206: 1035 | G206: 5570.37 | H206: 26609.229 | I206: 8950.679405 | J206: 0 | K206: 0 | L206: 0 | M206: 0 | N206: 0 | P206: 42228.2784
A207: =ROW() -> 207 | C207: New 8MPPA Terminal Build - Stage 1 | E207: 1889.819937 | F207: 0 | G207: 0 | H207: 0 | I207: 0 | J207: 2746.141834 | K207: 2842.256798 | L207: 23533.88629 | M207: 60893.93077 | N207: 84033.62447 | P207: 175939.6601
... 100 more rows

Sheet Sched 19
L2: Regulated Airport | M2: Wellington International Airport Limited
L3: Pricing Period Starting Year Ended | M3: 2020-03-31
A4: SCHEDULE 19: REPORT ON THE FORECAST PRICING ASSET BASE REVENUE REQUIREMENTS
A5: ref | B5: Version 3.0
E6: First Day of Pricing Period | F6: Pricing Period Starting Year | H6: Pricing Period Starting Year + 1 | J6: Pricing Period Starting Year + 2 | L6: Pricing Period Starting Year + 3 | N6: Pricing Period Starting Year + 4 | P6: Last Day of Pricing Period
A7: =ROW() -> 7 | B7: 19(i): Forecast Internal Rate of Return | F7: =+$M$3 -> 2020-03-31 | H7: =+F7+365 -> 2021-03-31 | J7: =+H7+365 -> 2022-03-31 | L7: =+J7+365 -> 2023-03-31 | N7: =+L7+366 -> 2024-03-31
A8: =ROW() -> 8 | C8: ($000) | D8: Cash flow date | E8: =E51 -> 2019-04-01 | F8: =M3-IF(ISNUMBER(E54),E54,F54) -> 2019-10-01 | G8: =$M$3-IF(ISNUMBER(E53),E53,F53) -> 2019-11-04 | H8: =EOMONTH($M$3,12)-IF(ISNUMBER(E54),E54,F54) -> 2020-09-30 | I8: =EOMONTH($M$3,12)-IF(ISNUMBER(E53),E53,F53) -> 2020-11-03 | J8: =EOMONTH($M$3,24)-IF(ISNUMBER(E54),E54,F54) -> 2021-09-30 | K8: =EOMONTH($M$3,24)-IF(ISNUMBER(E53),E53,F53) -> 2021-11-03 | L8: =EOMONTH($M$3,36)-IF(ISNUMBER(D53),E54,F54) -> 2022-09-30 | M8: =EOMONTH($M$3,36)-IF(ISNUMBER(E53),E53,F53) -> 2022-11-03 | N8: =EOMONTH($M$3,48)-IF(ISNUMBER(K54),E54,F54) -> 2023-10-01 | O8: =EOMONTH($M$3,48)-IF(ISNUMBER(E53),E53,F53) -> 2023-11-04 | P8: =EOMONTH($M$3,48) -> 2024-03-31
A9: =ROW() -> 9 | C9: Opening asset base (applicable to price setting) | E9: =F127 -> 485104.4626
A10: =ROW() -> 10 | C10: Foreacst opening carry forward adjustment | E10: =G32 -> 9224.481202
A11: =ROW() -> 11 | C11: Opening investment value | E11: =E9-E10 -> 475879.9814
A12: =ROW() -> 12
A13: =ROW() -> 13 | B13: plus | C13: Forecast revenue for services applicable to price setting event | G13: =F79 -> 79736 | I13: =G79 -> 38437.9588 | K13: =H79 -> 64590.85615 | M13: =I79 -> 85534.66797 | O13: =J79 -> 99851.52
A14: =ROW() -> 14 | B14: less | C14: Forecast assets commissioned | F14: =-F130 -> -25902.18006 | H14: =-G130 -> -25673.66646 | J14: =-H130 -> -40629.70739 | L14: =-I130 -> -65572.57251 | N14: =-J130 -> -106300.6645
A15: =ROW() -> 15 | B15: plus | C15: Forecast cash flow from asset disposals
A16: =ROW() -> 16 | B16: less | C16: Forecast operational expenditure | F16: =-F81 -> -21742.77136 | H16: =-G81 -> -18048.90483 | J16: =-H81 -> -21508.72544 | L16: =-I81 -> -25296.09693 | N16: =-J81 -> -29411.77738
A17: =ROW() -> 17 | B17: less | C17: Forecast unlevered tax | F17: =-F83 -> -13212.89846 | H17: =-G83 -> -2695.334099 | J17: =-H83 -> -8803.70265 | L17: =-I83 -> -13035.80751 | N17: =-J83 -> -15044.8264
A18: =ROW() -> 18
A19: =ROW() -> 19 | C19: Forecast closing asset base | P19: =J133 -> 691573.6723
A20: =ROW() -> 20 | C20: Forecast closing carry forward adjustment | P20: =E43 -> -10487.7594
A21: =ROW() -> 21 | C21: Forecast closing investment value | P21: =P19-P20 -> 702061.4317
A22: =ROW() -> 22
A23: =ROW() -> 23 | C23: Forecast net cash flows | E23: =-E11 -> -475879.9814 | F23: =SUM(F13:F17) -> -60857.84989 | G23: =SUM(G13:G17) -> 79736 | H23: -46417.9054 | I23: 38437.9588 | J23: -70942.13549 | K23: 64590.85615 | L23: -103904.477 | M23: 85534.66797 | N23: -150757.2683 | O23: 99851.52 | P23: =P21 -> 702061.4317
A24: =ROW() -> 24
A25: =ROW() -> 25 | C25: ="Forcast post-tax IRR as at "&TEXT(E8,"dd mmmm yyy") -> Forcast post-tax IRR as at 01 April 2019 | E25: =IFERROR(XIRR(E23:P23,E8:P8),"") -> 0.05927450359
A26: =ROW() -> 26 | C26: NPV check | E26: =IFERROR(XNPV(E25,E23:P23,E8:P8),0) -> 0.001792144962 | F26: =IF(ABS(E26)<0.01,"OK","ERROR") -> OK
A27: =ROW() -> 27 | B27: 19(ii): Opening carry forward adjustment
A28: =ROW() -> 28 | C28: ($000) | E28: Forecast closing carry forward from previous price setting event | F28: Opening carry forward adjustments from current price setting event | G28: Total opening carry forward adjustments | I28: Please explain each adjustment and how this has been calculated
A29: =ROW() -> 29 | C29: Default revaluation gain/loss adjustment | E29: -33349.08137 | F29: 42573.56257 | G29: =E29+F29 -> 9224.481202 | I29: Revaluation shortall incurred by WIAL during period of information dislcosure regulation until 2018, offset by MVAU revauation uplift in 2019.
A30: =ROW() -> 30 | C30: Risk allocation adjustment | E30: 0 | F30: 0 | G30: =E30+F30 -> 0
A31: =ROW() -> 31 | C31: Other carry forward adjustments | E31: 0 | F31: 0 | G31: 0
A32: =ROW() -> 32 | C32: Opening carry forward adjustment | E32: =SUM(E29:E31) -> -33349.08137 | F32: 42573.56257 | G32: =SUM(G29:G31) -> 9224.481202
A33: =ROW() -> 33 | C33: Provide a summary of any views expressed by substantial customers about the pricing approaches reflected in the opening carry forward adjustment
A34: =ROW() -> 34 | C34: Revaluation methodology reviewed and agreed with substantial customers during consultation.
A35: =ROW() -> 35
A36: =ROW() -> 36
A37: =ROW() -> 37 | B37: 19(iii): Forecast closing carry forward adjustment
E38: ($000) | G38: Please explain each adjustment and how this has been calculated
A39: =ROW() -> 39 | C39: Remaining revaluation gains to be applied to PSE5 | E39: 4612.240601 | G39: MVAU uplift and historic revaluation shortfall allocated across PES4 and PSE5
A40: =ROW() -> 40 | C40: PSE4 revenue shortfall | E40: -15100 | G40: Price increase capped in PSE4 with shortfall in earnings to be recovered in PSE5
A41: =ROW() -> 41 | C41: [description of closing carry forward adjustment]
A42: =ROW() -> 42 | C42: [description of closing carry forward adjustment]
A43: =ROW() -> 43 | C43: Total forecast closing carry forward adjustment | E43: =SUM(E39:E42) -> -10487.7594
A44: =ROW() -> 44 | C44: Explain how the closing investment value provides a good indication of the remaining capital expected to be recovered by the airport in future pricing periods and provide a summary of substantial customer views on any closing carry forward adjustments
A45: =ROW() -> 45 | C45: Revaluation methodology reviewed and agreed with substantial customers during consultation. Shortfall in PSE4 earnings to be recovered in PSE5 following a risk sharing arrangement established to respond to the COVID19 pandemic during the PSE4
A46: =ROW() -> 46
A47: =ROW() -> 47
A48: =ROW() -> 48 | B48: 19(iv): Cash flow timing assumptions
A49: =ROW() -> 49
A50: =ROW() -> 50 | C50: Year of most recent annual disclosure (year ended) | E50: 2019-03-31
A51: =ROW() -> 51 | C51: First day of pricing period | E51: 2019-04-01
A52: =ROW() -> 52 | E52: Airport assumption | F52: Default assumption
C53: Cash flow timing - revenues - days from year end | E53: 148 | F53: 148
A54: =ROW() -> 54 | C54: Cash flow timing - expenditure - days from year end | E54: 182 | F54: 182
A55: =ROW() -> 55 | C55: Explanation and evidence if airport assumption is different from default
A56: =ROW() -> 56 | C56: N/A
A57: =ROW() -> 57 | Q57: Page 7
H60: Regulated Airport | I60: =+$M$2 -> Wellington International Airport Limited
H61: Pricing Period Starting Year Ended | I61: =+$M$3 -> 2020-03-31
A62: SCHEDULE 19: REPORT ON THE FORECAST PRICING ASSET BASE REVENUE REQUIREMENTS (cont 2)
A63: ref | B63: Version 3.0
A64: =ROW() -> 64 | B64: 19(v): Total Revenue Requirement for Pricing Assets
A65: =ROW() -> 65 | C65: Overview of the methodology used to determine the revenue requirement for pricing assets
A66: =ROW() -> 66 | C66: Refer to comments in Price Setting Disclosure including sections 6 and 7, and comments on ID Determination clauses 2.5(1)(a)(i) and (ii).
A67: =ROW() -> 67
A68: =ROW() -> 68
A69: =ROW() -> 69
A70: =ROW() -> 70
A71: =ROW() -> 71
A72: =ROW() -> 72
A73: =ROW() -> 73
A74: =ROW() -> 74 | C74: ($000) | F74: Pricing Period Starting Year | G74: Pricing Period Starting Year + 1 | H74: Pricing Period Starting Year + 2 | I74: Pricing Period Starting Year + 3 | J74: Pricing Period Starting Year + 4
A75: =ROW() -> 75 | F75: =+F7 -> 2020-03-31 | G75: =+F75+365 -> 2021-03-31 | H75: =+G75+365 -> 2022-03-31 | I75: 2023-03-31 | J75: =+I75+366 -> 2024-03-31
A76: =ROW() -> 76 | C76: Forecast revenue from airport activity charges applicable to the price setting event | F76: 79736 | G76: 38437.9588 | H76: 64590.85615 | I76: 85534.66797 | J76: 99851.52
C77: Forecast lease, rental and concession income (applicable to the price setting event) | F77: 0 | G77: 0 | H77: 0 | I77: 0 | J77: 0
A78: =ROW() -> 78 | B78: plus | C78: Forecast other operating revenue (applicable to the price setting event)
A79: =ROW() -> 79 | C79: Forecast pricing revenue for services applicable to the price setting event pricing revenue requirement (excluding assets held for future use revenue) | F79: =SUM(F76:F78) -> 79736 | G79: =SUM(G76:G78) -> 38437.9588 | H79: =SUM(H76:H78) -> 64590.85615 | I79: =SUM(I76:I78) -> 85534.66797 | J79: =SUM(J76:J78) -> 99851.52
A80: =ROW() -> 80
A81: =ROW() -> 81 | B81: less | C81: Forecast operational expenditure | F81: 21742.77136 | G81: 18048.90483 | H81: 21508.72544 | I81: 25296.09693 | J81: 29411.77738
A82: =ROW() -> 82 | B82: less | C82: Forecast depreciation | F82: =-F128 -> 17858.94686 | G82: =-G128 -> 18632.79996 | H82: 19439.22526 | I82: 19909.38841 | J82: 21400.64282
A83: =ROW() -> 83 | B83: less | C83: Forecast unlevered tax | F83: 13212.89846 | G83: 2695.334099 | H83: 8803.70265 | I83: 13035.80751 | J83: 15044.8264
A84: =ROW() -> 84 | B84: plus | C84: Forecast revaluations | F84: =F129 -> 7276.56694 | G84: =G129 -> 7506.363942 | H84: 7724.572398 | I84: 8158.298216 | J84: 8965.620451
A85: =ROW() -> 85
A86: =ROW() -> 86 | C86: Forecast regulatory profit / (loss) | F86: =F79-F81-F82-F83+F84 -> 34197.95026 | G86: =G79-G81-G82-G83+G84 -> 6567.283849 | H86: =H79-H81-H82-H83+H84 -> 22563.7752 | I86: =I79-I81-I82-I83+I84 -> 35451.67334 | J86: =J79-J81-J82-J83+J84 -> 42959.89385
A87: =ROW() -> 87
A88: =ROW() -> 88 | C88: Forecast cost of capital | F88: 0.0608
A89: =ROW() -> 89
A90: =ROW() -> 90 | C90: Explain any difference between the post-tax IRR on the pricing asset base and the post-tax IRR on the regulated asset base
A91: =ROW() -> 91 | C91: Refer to comments in Price Setting Disclosure on ID Determination clauses 2.5(10(a)(i) and (ii), and 2.5(1)(c)(ii).
A92: =ROW() -> 92
A93: =ROW() -> 93
A94: =ROW() -> 94 | C94: Forecast pricing revenue requirement from airport charges (including assets held for future use charges)
A95: =ROW() -> 95 | C95: Forecast pricing revenue requirement (excluding forecast revenue from assets held for future use revenues) | F95: =F76 -> 79736 | G95: =G76 -> 38437.9588 | H95: =H76 -> 64590.85615 | I95: =I76 -> 85534.66797 | J95: =J76 -> 99851.52
A96: =ROW() -> 96 | C96: Forecast revenues from assets held for future use charges
A97: =ROW() -> 97 | C97: Forecast pricing revenue requirement from airport charges (including forecast revenue from assets held for future use charges) | F97: =F95+F96 -> 79736 | G97: =G95+G96 -> 38437.9588 | H97: =H95+H96 -> 64590.85615 | I97: =I95+I96 -> 85534.66797 | J97: =J95+J96 -> 99851.52
A98: =ROW() -> 98 | C98: Description of any other factors that are considered in determining the forecast total revenue requirement
A99: =ROW() -> 99 | C99: There are no other factors.
A100: =ROW() -> 100
A101: =ROW() -> 101
A102: =ROW() -> 102
A103: =ROW() -> 103
A104: =ROW() -> 104
A105: =ROW() -> 105
A106: =ROW() -> 106
A107: =ROW() -> 107 | L107: Page 8
G110: Regulated Airport | H110: =+$M$2 -> Wellington International Airport Limited
G111: Pricing Period Starting Year Ended | H111: =+$M$3 -> 2020-03-31
A112: SCHEDULE 19: REPORT ON THE FORECAST PRICING ASSET BASE REVENUE REQUIREMENTS (cont 3)
A113: ref | B113: Version 3.0
C114: ($000)
A115: =ROW() -> 115 | B115: 19(vi): Opening Regulated Asset Base (applicable to price setting)
A116: =ROW() -> 116 | E116: =E51-1 -> 2019-03-31
A117: =ROW() -> 117 | C117: ="Regulated asset base (applicable to price setting) as at "&TEXT(E50,"dd mmmm yyy") -> Regulated asset base (applicable to price setting) as at 31 March 2019 | E117: 443235.9088
A118: =ROW() -> 118 | B118: less | C118: Forecast depreciation | E118: 0
A119: =ROW() -> 119 | B119: plus | C119: Forecast revaluations | E119: 41868.55387
A120: =ROW() -> 120 | B120: plus | C120: Assets commissioned | E120: 0
A121: =ROW() -> 121 | B121: less | C121: Asset disposals
A122: =ROW() -> 122 | B122: plus (less) | C122: Forecast adjustment resulting from cost allocation
A123: =ROW() -> 123 | C123: Estimate of regulated asset base (applicable to price setting) at start of price setting event | E123: =E117+E118+E119+E120-E121+E122 -> 485104.4626
A124: =ROW() -> 124 | E124: Pricing Period Starting Year - 1 | F124: Pricing Period Starting Year | G124: Pricing Period Starting Year + 1 | H124: Pricing Period Starting Year + 2 | I124: Pricing Period Starting Year + 3 | J124: Pricing Period Starting Year + 4
A125: =ROW() -> 125 | C125: for year ended | E125: =EOMONTH(F125,-12) -> 2019-03-31 | F125: =+$M$3 -> 2020-03-31 | G125: =+F125+365 -> 2021-03-31 | H125: =+G125+365 -> 2022-03-31 | I125: 2023-03-31 | J125: =+I125+366 -> 2024-03-31
A126: =ROW() -> 126 | B126: 19(vii): Forecast Asset Base (applicable to price setting)
A127: =ROW() -> 127 | C127: Forecast pricing asset base—previous year | E127: 443235.9088 | F127: =E133 -> 485104.4626 | G127: =F133 -> 500424.2628 | H127: =G133 -> 514971.4932 | I127: =H133 -> 543886.5478 | J127: =I133 -> 597708.0301
A128: =ROW() -> 128 | B128: less | C128: Forecast depreciation | E128: 0 | F128: -17858.94686 | G128: -18632.79996 | H128: -19439.22526 | I128: -19909.38841 | J128: -21400.64282
A129: =ROW() -> 129 | B129: plus | C129: Forecast revaluations | E129: 41868.55387 | F129: 7276.56694 | G129: 7506.363942 | H129: 7724.572398 | I129: 8158.298216 | J129: 8965.620451
A130: =ROW() -> 130 | B130: plus | C130: Assets commissioned | E130: 0 | F130: 25902.18006 | G130: 25673.66646 | H130: 40629.70739 | I130: 65572.57251 | J130: 106300.6645
A131: =ROW() -> 131 | B131: less | C131: Asset disposals
A132: =ROW() -> 132 | B132: plus (less) | C132: Forecast adjustment resulting from cost allocation
A133: =ROW() -> 133 | C133: Forecast pricing asset base | E133: =E127+E128+E129+E130-E131+E132 -> 485104.4626 | F133: =F127+F128+F129+F130-F131+F132 -> 500424.2628 | G133: 514971.4932 | H133: 543886.5478 | I133: 597708.0301 | J133: 691573.6723
A134: =ROW() -> 134
A135: =ROW() -> 135 | C135: Description of and explanation for the depreciation methodology applied
A136: =ROW() -> 136 | C136: Refer to comments in Price Setting Disclosure on ID Determination clauses 2.5(1)(c)(iv), and 2.5(1)(p) and (q).
A137: =ROW() -> 137
A138: =ROW() -> 138
A139: =ROW() -> 139
K140: Page 9

Sheet S20. Demand Forecast
Q2: Regulated Airport | R2: Wellington International Airport Limited
Q3: Pricing Period Starting Year Ended | R3: 2019-04-01
A4: SCHEDULE 20: REPORT ON DEMAND FORECASTS
A5: ref | B5: Version 4.0
A6: =ROW() -> 6 | B6: 20a: Passenger terminal demand
A7: =ROW() -> 7 | D7: (000) | F7: Pricing Period Starting Year | H7: Pricing Period Starting Year + 1 | J7: Pricing Period Starting Year + 2 | L7: Pricing Period Starting Year + 3 | N7: Pricing Period Starting Year + 4 | P7: Pricing Period Starting Year + 5 | R7: Pricing Period Starting Year + 6 | T7: Pricing Period Starting Year + 7 | V7: Pricing Period Starting Year + 8 | X7: Pricing Period Starting Year + 9
A8: =ROW() -> 8 | E8: =IF(ISNUMBER(#REF!),"for year ended","") ->  | F8: 2019-04-01 | H8: 2020-04-01 | J8: 2021-04-01 | L8: 2022-04-01 | N8: 2023-04-01 | P8: 2024-04-01 | R8: 2025-04-01 | T8: 2026-04-01 | V8: 2027-04-01 | X8: 2028-04-01
A9: =ROW() -> 9 | C9: Busy hour passenger numbers | D9: Inbound passengers | E9: Domestic | F9: 1256 | H9: 1021 | J9: 1041.344231 | L9: 1222.207105 | N9: 1330.878933 | P9: 1353.943349 | R9: 1378.1995 | T9: 1405.135993 | V9: 1433.758788 | X9: 1465.364901
A10: =ROW() -> 10 | E10: International | F10: 594 | H10: 0 | J10: 365.5840648 | L10: 477.4393792 | N10: 617.4128136 | P10: 638.5913836 | R10: 687.6918357 | T10: 710.3398016 | V10: 734.2269169 | X10: 763.6412989
A11: =ROW() -> 11 | E11: Combined * | F11: 1260 | H11: 1021 | J11: 1041.344231 | L11: 1222.207105 | N11: 1330.878933 | P11: 1354.993908 | R11: 1391.194906 | T11: 1421.301104 | V11: 1453.235456 | X11: 1489.460202
A12: =ROW() -> 12
A13: =ROW() -> 13 | D13: Outbound passengers | E13: Domestic | F13: 1217 | H13: 996 | J13: 1009.009498 | L13: 1184.256407 | N13: 1289.553871 | P13: 1311.902115 | R13: 1335.405089 | T13: 1361.505178 | V13: 1389.239208 | X13: 1419.86392
A14: =ROW() -> 14 | E14: International | F14: 580 | H14: 0 | J14: 356.9676054 | L14: 466.1865992 | N14: 602.8609964 | P14: 623.5404082 | R14: 671.4836106 | T14: 693.5977861 | V14: 716.9219054 | X14: 745.6430191
A15: =ROW() -> 15 | E15: Combined * | F15: 1264 | H15: 996 | J15: 1009.009498 | L15: 1195.582195 | N15: 1332.86771 | P15: 1359.295476 | R15: 1395.611397 | T15: 1425.813171 | V15: 1457.848902 | X15: 1494.188647
A16: =ROW() -> 16 | F16: * No disclosure of combined terminal forecasts is required for airports with no shared passenger terminal functional components.
A17: =ROW() -> 17 | C17: Number of passengers during year | D17: Inbound passengers | E17: Domestic | F17: =5226449/2 -> 2613224.5 | H17: 1481224.107 | J17: 2221049.575 | L17: 2606806.175 | N17: 2838588.816 | P17: 2887782.167 | R17: 2939517.331 | T17: 2996969.307 | V17: 3058017.946 | X17: 3125429.606
A18: =ROW() -> 18 | E18: International | F18: 459811 | H18: 99.82 | J18: 145009.3282 | L18: 378753.7275 | N18: 489794.9661 | P18: 506595.9731 | R18: 545547.4716 | T18: 563514.1536 | V18: 582463.8556 | X18: 605798.3506
A19: =ROW() -> 19 | E19: Total | F19: =SUM(F17:F18) -> 3073035.5 | H19: =SUM(H17:H18) -> 1481323.927 | J19: =SUM(J17:J18) -> 2366058.903 | L19: =SUM(L17:L18) -> 2985559.902 | N19: =SUM(N17:N18) -> 3328383.782 | P19: =SUM(P17:P18) -> 3394378.14 | R19: =SUM(R17:R18) -> 3485064.802 | T19: =SUM(T17:T18) -> 3560483.461 | V19: =SUM(V17:V18) -> 3640481.802 | X19: =SUM(X17:X18) -> 3731227.956
A20: =ROW() -> 20
A21: =ROW() -> 21 | D21: Outbound passengers | E21: Domestic | F21: =F17 -> 2613224.5 | H21: =H17 -> 1481224.107 | J21: =J17 -> 2221049.575 | L21: =L17 -> 2606806.175 | N21: =N17 -> 2838588.816 | P21: =P17 -> 2887782.167 | R21: =R17 -> 2939517.331 | T21: =T17 -> 2996969.307 | V21: =V17 -> 3058017.946 | X21: =X17 -> 3125429.606
A22: =ROW() -> 22 | E22: International | F22: =F18 -> 459811 | H22: =H18 -> 99.82 | J22: =J18 -> 145009.3282 | L22: =L18 -> 378753.7275 | N22: =N18 -> 489794.9661 | P22: =P18 -> 506595.9731 | R22: =R18 -> 545547.4716 | T22: =T18 -> 563514.1536 | V22: =V18 -> 582463.8556 | X22: =X18 -> 605798.3506
A23: =ROW() -> 23 | E23: Total | F23: =SUM(F21:F22) -> 3073035.5 | H23: =SUM(H21:H22) -> 1481323.927 | J23: =SUM(J21:J22) -> 2366058.903 | L23: =SUM(L21:L22) -> 2985559.902 | N23: =SUM(N21:N22) -> 3328383.782 | P23: =SUM(P21:P22) -> 3394378.14 | R23: =SUM(R21:R22) -> 3485064.802 | T23: =SUM(T21:T22) -> 3560483.461 | V23: =SUM(V21:V22) -> 3640481.802 | X23: =SUM(X21:X22) -> 3731227.956
A24: =ROW() -> 24
A25: =ROW() -> 25 | D25: International transit and transfer passengers† | F25: 0 | H25: 0 | J25: 0 | L25: 0 | N25: 0 | P25: 0 | R25: 0 | T25: 0 | V25: 0 | X25: 0
A26: =ROW() -> 26 | F26: † NB. Forecasts of international transit and transfer passenger numbers relate only to airports with extant or planned international transit and transfer facilities
A27: =ROW() -> 27 | Y27: Page 10
Q30: Regulated Airport | R30: Wellington International Airport Limited
Q31: Pricing Period Starting Year Ended | R31: =+R3 -> 2019-04-01
A32: SCHEDULE 20: REPORT ON DEMAND FORECASTS (cont)
A33: ref | B33: Version 4.0
A34: =ROW() -> 34 | B34: 20b: Aircraft Runway Movements
A35: =ROW() -> 35 | D35: (000) | F35: Pricing Period Starting Year | H35: Pricing Period Starting Year + 1 | J35: Pricing Period Starting Year + 2 | L35: Pricing Period Starting Year + 3 | N35: Pricing Period Starting Year + 4 | P35: Pricing Period Starting Year + 5 | R35: Pricing Period Starting Year + 6 | T35: Pricing Period Starting Year + 7 | V35: Pricing Period Starting Year + 8 | X35: Pricing Period Starting Year + 9
A36: =ROW() -> 36 | E36: =IF(ISNUMBER(#REF!),"for year ended","") ->  | F36: 2019-04-01 | H36: 2020-04-01 | J36: 2021-04-01 | L36: 2022-04-01 | N36: 2023-04-01 | P36: 2024-04-01 | R36: 2025-04-01 | T36: 2026-04-01 | V36: 2027-04-01 | X36: 2028-04-01
A37: =ROW() -> 37 | C37: Movements during busy period (total number of aircraft) | D37: During the runway busy hour | F37: 32 | H37: 30 | J37: 30 | L37: 31.22482575 | N37: 33.10520839 | P37: 32.96216009 | R37: 33.31408592 | T37: 32.89019819 | V37: 33.09391725 | X37: 33.10856584
A38: =ROW() -> 38 | D38: During the runway busy day | F38: 328 | H38: 276 | J38: 288.5877215 | L38: 321.9455763 | N38: 341.3333826 | P38: 339.8584739 | R38: 343.4870279 | T38: 339.1165061 | V38: 341.2169646 | X38: 341.3679998
A39: =ROW() -> 39
A40: =ROW() -> 40 | C40: Landings during year (total number of aircraft) | D40: Aircraft 30 tonnes MCTOW or more | F40: 14918.5 | H40: 6272.454545 | J40: 10865.13636 | L40: 14271.81818 | N40: 15886.5 | P40: 15867.75 | R40: 16598 | T40: 17069.25 | V40: 17549.75 | X40: 17582.75
A41: =ROW() -> 41 | D41: Aircraft 3 tonnes or more but less than 30 tonnes MCTOW | F41: 29226 | H41: 21357 | J41: 26624.5 | L41: 29291 | N41: 30642 | P41: 30452 | R41: 30257.5 | T41: 29178.5 | V41: 29009 | X41: 29010.5
A42: =ROW() -> 42 | D42: Aircraft less than 3 tonnes MCTOW | F42: 3199.5 | H42: 3134.818182 | J42: 2909.378788 | L42: 2738.939394 | N42: 2596 | P42: 2596 | R42: 2596 | T42: 2596 | V42: 2596 | X42: 2596
A43: =ROW() -> 43 | D43: Total | F43: =SUM(F40:F42) -> 47344 | H43: =SUM(H40:H42) -> 30764.27273 | J43: =SUM(J40:J42) -> 40399.01515 | L43: =SUM(L40:L42) -> 46301.75758 | N43: =SUM(N40:N42) -> 49124.5 | P43: =SUM(P40:P42) -> 48915.75 | R43: =SUM(R40:R42) -> 49451.5 | T43: =SUM(T40:T42) -> 48843.75 | V43: =SUM(V40:V42) -> 49154.75 | X43: =SUM(X40:X42) -> 49189.25
A44: =ROW() -> 44
A45: =ROW() -> 45 | C45: Landings during year (total MCTOW in tonnes) | D45: Aircraft 30 tonnes MCTOW or more | F45: 1148563.46 | H45: 465796.4574 | J45: 817019.1326 | L45: 1079329.922 | N45: 1203283.968 | P45: 1277875.793 | R45: 1357864.368 | T45: 1417697.093 | V45: 1477518.993 | X45: 1544444.093
A46: =ROW() -> 46 | D46: Aircraft 3 tonnes or more but less than 30 tonnes MCTOW | F46: 463142.8366 | H46: 339476.264 | J46: 421924.3141 | L46: 463594.4499 | N46: 484530.6285 | P46: 484898.0785 | R46: 485292.5035 | T46: 472473.6785 | V46: 475303.5535 | X46: 478086.4285
A47: =ROW() -> 47 | D47: Aircraft less than 3 tonnes MCTOW | F47: 3363.703379 | H47: 3356.222548 | J47: 3069.319032 | L47: 2870.415516 | N47: 2715.512 | P47: 2715.512 | R47: 2715.512 | T47: 2715.512 | V47: 2715.512 | X47: 2715.512
A48: =ROW() -> 48 | D48: Total | F48: =SUM(F45:F47) -> 1615070 | H48: =SUM(H45:H47) -> 808628.944 | J48: =SUM(J45:J47) -> 1242012.766 | L48: =SUM(L45:L47) -> 1545794.787 | N48: =SUM(N45:N47) -> 1690530.109 | P48: =SUM(P45:P47) -> 1765489.384 | R48: =SUM(R45:R47) -> 1845872.384 | T48: =SUM(T45:T47) -> 1892886.284 | V48: =SUM(V45:V47) -> 1955538.059 | X48: =SUM(X45:X47) -> 2025246.034
A49: =ROW() -> 49
A50: =ROW() -> 50 | C50: Landings during year (total number of aircraft) | D50: Air passenger services—international | F50: 3319 | H50: 1.5 | J50: 1118 | L50: 2756 | N50: 3484 | P50: 3490.25 | R50: 3691.5 | T50: 3815.75 | V50: 3940.75 | X50: 4068.25
A51: =ROW() -> 51 | D51: Air passenger services—domestic | F51: 37988 | H51: 25082.5 | J51: 33676 | L51: 38016 | N51: 40186 | P51: 39971 | R51: 40305.5 | T51: 39573.5 | V51: 39759.5 | X51: 39666.5
A52: =ROW() -> 52 | D52: Other aircraft | F52: 6037 | H52: 5680.272727 | J52: 5605.015152 | L52: 5529.757576 | N52: 5454.5 | P52: 5454.5 | R52: 5454.5 | T52: 5454.5 | V52: 5454.5 | X52: 5454.5
A53: =ROW() -> 53
A54: =ROW() -> 54 | C54: Landings during year (total MCTOW in tonnes) | D54: Air passenger services—international | F54: 299468 | H54: 118.5 | J54: 87206.6 | L54: 215035.6 | N54: 271804 | P54: 327479.325 | R54: 349772.4 | T54: 364906.625 | V54: 380094.275 | X54: 395476.125
A55: =ROW() -> 55 | D55: Air passenger services—domestic | F55: 1276393 | H55: 768823.75 | J55: 1115138.65 | L55: 1291110.85 | N55: 1379096.95 | P55: 1398380.9 | R55: 1456470.825 | T55: 1488350.5 | V55: 1535814.625 | X55: 1590140.75
A56: =ROW() -> 56 | D56: Other aircraft | F56: 39209 | H56: 39686.69404 | J56: 39667.51569 | L56: 39648.33735 | N56: 39629.159 | P56: 39629.159 | R56: 39629.159 | T56: 39629.159 | V56: 39629.159 | X56: 39629.159
A57: =ROW() -> 57 | C57: Description of the basis for forecasts, and/or assumptions made in forecasting
A58: =ROW() -> 58 | C58: Passenger and Air Traffic Movements (ATM) forecasts were prepared for the period FY2020 to FY2029 based on: • Actual passenger numbers up to and including the period between April 2019 and February 2021; and • Actual ATMs up to and including the period between April 2019 and February 2021; and • An estimate of March 2021 based on schedule information for that month to complete FY2021 estimates. • There were no scheduled International services in FY21 and so International busy hour numbers are not available. Passenger forecasts capture traditional macro-economic growth drivers as well as airline driven market growth initiatives. Air Traffic Movement (ATM) forecasts were developed by applying passenger seat load factor assumptions and forecast fleet composition changes to passenger forecasts. Assumptions relating to the recovery from Covid-19 were also overlayed. Stakeholder consultations were undertaken with WIAL’s management team to understand their strategic growth plans and those of their key customers, and desk based research of publically available information was used to inform route development opportunities and fleet deployment changes. Runway extension was not included in the developed scenario. Anticipated driven market changes include: • Recovery post-Covid to FY2020 levels in FY2023-FY2024, with a 3-4 year lag on MP2040 growth projections • New trans-Tasman destinations served; • Future upgauging of aircraft such as the introduction of more A321 flying, phasing out of Q300 replacing with ATR flying, the return of widebody Tasman services from FY2025, and the introduction of a widebody domestic service at the end of the forecast period
A59: =ROW() -> 59
A60: =ROW() -> 60
A61: =ROW() -> 61
A62: =ROW() -> 62
A63: =ROW() -> 63
A64: =ROW() -> 64
A65: =ROW() -> 65
A66: =ROW() -> 66
A67: =ROW() -> 67
A68: =ROW() -> 68
A69: =ROW() -> 69
A70: =ROW() -> 70
A71: =ROW() -> 71
A72: =ROW() -> 72 | Y72: Page 11
